bitfinex/quotes_ETHUSD_20250815
["timestamp","ask_amount","ask_price","bid_price","bid_amount"]
[1755228967146,0.9166,4651.9,4651.5,0.001]
[1755228967365,2.25694928,4651.8,4651.5,0.001]
[1755228967566,2.14975492,4651.7,4651.5,0.001]
[1755228967877,0.9166,4651.7,4651.5,0.001]
[1755228968266,2.25690928,4651.8,4651.5,0.001]
[1755228968267,0.1072,4651.8,4651.5,0.001]
[1755228968776,0.1072,4652.6,4651.7,0.1072]
[1755228968948,0.1072,4652.6,4652.0,0.1072]
[1755228969642,2.14914521,4653.1,4651.8,3.318]
[1755228969847,2.25640408,4652.9,4652.3,0.1072]
[1755228970060,2.25640408,4652.9,4652.3,3.4272]
[1755228970555,0.1072,4652.9,4652.3,3.4272]
[1755228975407,0.9166,4653.8,4652.4,2.57992825]
[1755228975607,0.1072,4653.3,4652.6,0.1072]
[1755228975813,0.1072,4653.3,4652.6,0.5377]
[1755228976009,0.1072,4653.3,4652.7,0.02149289]
[1755228976305,0.1072,4653.3,4652.6,0.5377]
[1755228976306,0.1072,4653.3,4652.8,3.316]
[1755228976873,2.149108,4653.1,4652.5,3.316]
[1755228977072,6.528337,4653.0,4652.5,3.316]
[1755228977308,0.5635,4653.0,4652.5,3.316]
[1755228977507,0.1072,4653.0,4652.5,3.7465]
[1755228978208,2.14920105,4652.9,4652.5,3.316]
[1755228978519,2.14928965,4652.7,4651.3,0.4315]
[1755228978692,0.1072,4652.6,4652.0,0.1072]
[1755228979003,0.1072,4652.6,4652.1,3.316]
[1755228979200,0.5635,4652.6,4652.1,3.316]
[1755228979421,0.9166,4652.5,4652.1,3.316]
[1755228979574,0.4603,4652.5,4652.1,3.316]
[1755228979769,0.9166,4652.5,4652.1,3.316]
[1755228979970,0.4563,4652.5,4652.1,3.316]
[1755228980802,0.4563,4652.4,4652.1,3.316]
[1755228981713,0.4563,4652.3,4652.0,0.1072]
[1755228982021,0.4563,4652.3,4652.0,3.4232]
[1755228982315,0.1072,4652.6,4652.0,3.4232]
[1755228982490,6.421137,4652.5,4652.0,3.4232]
[1755228982689,6.912237,4652.5,4652.0,3.4232]
[1755228982881,0.4911,4652.5,4652.0,3.4232]
[1755228983294,0.4911,4652.4,4652.0,3.4232]
[1755228984524,0.1072,4652.6,4652.0,3.4232]
[1755228984676,6.421137,4652.5,4652.0,3.4232]
[1755228985081,0.4911,4652.4,4652.0,3.4232]
[1755228985294,0.1072,4652.6,4652.0,3.4232]
[1755228985495,6.421137,4652.5,4652.0,3.4232]
[1755228985731,6.421137,4652.5,4652.0,3.8593]
[1755228986319,2.14948036,4652.3,4651.5,0.001]
[1755228986493,0.1072,4652.2,4651.6,0.1072]
[1755228986692,0.4911,4652.1,4651.7,3.316]
[1755228986905,0.1072,4652.2,4651.7,3.316]
[1755228987112,0.9431,4652.0,4651.7,3.316]
[1755228987494,0.452,4652.0,4651.7,3.316]
[1755228987695,1.0503,4651.9,4651.5,3.317]
[1755228987895,0.4911,4651.8,4651.5,3.317]
[1755228988619,0.4911,4651.7,4651.5,3.317]
[1755228988826,3.20009791,4651.6,4651.5,3.317]
[1755228988989,3.20009791,4651.6,4651.5,0.001]
[1755228991229,0.1072,4651.6,4651.5,0.001]
[1755228992119,0.452,4652.6,4651.5,0.4371]
[1755228992321,0.1072,4652.1,4651.5,0.8923]
[1755228992511,6.421137,4652.0,4651.5,0.8923]
[1755228992708,6.421137,4652.0,4651.5,0.4562]
[1755228992907,6.421137,4652.0,4651.6,0.4361]
[1755228993108,6.421137,4652.0,4651.7,3.7531]
[1755228993890,0.1072,4652.1,4651.7,3.7531]
[1755228994094,0.1072,4652.1,4651.8,0.4361]
[1755228994314,0.1072,4652.1,4651.9,0.4361]
[1755228995145,0.1072,4652.1,4652.0,0.4361]
[1755228995496,0.1072,4652.7,4652.0,0.5433]
[1755228995847,6.421137,4652.6,4652.0,0.5433]
[1755228996334,0.1072,4652.7,4652.0,0.5433]
[1755228996537,2.25649084,4652.7,4652.0,0.5433]
[1755228996844,0.1072,4652.7,4652.0,0.5433]
[1755228997804,2.25649348,4652.7,4652.0,0.5433]
[1755228998004,0.1072,4652.7,4652.0,0.5433]
[1755229001017,0.4911,4653.1,4652.0,0.4361]
[1755229001193,0.1072,4652.9,4652.3,0.1072]
[1755229001397,0.1072,4652.9,4652.4,3.316]
[1755229001939,0.1072,4652.9,4652.5,0.4361]
[1755229002141,0.1072,4652.9,4652.4,3.316]
[1755229002729,0.1072,4652.9,4652.4,3.7521]
[1755229002938,0.1072,4652.9,4652.4,3.316]
[1755229003099,2.25639938,4652.9,4652.4,3.7521]
[1755229003298,0.1072,4652.9,4652.4,3.7521]
[1755229003601,0.5983,4652.9,4652.4,3.7521]
[1755229004626,0.1072,4652.9,4652.4,3.316]
[1755229004830,0.1072,4652.9,4652.5,0.4361]
[1755229005130,0.1072,4652.9,4652.6,0.4361]
[1755229005897,0.1072,4652.9,4652.4,3.316]
[1755229006097,0.1072,4652.9,4652.4,3.7521]
[1755229006698,0.1072,4652.9,4652.5,0.4361]
[1755229007117,0.1072,4652.9,4652.4,3.316]
[1755229007619,0.4911,4653.3,4652.4,3.316]
[1755229007620,0.1072,4653.3,4652.5,0.8913]
[1755229007928,0.1072,4653.3,4652.7,0.1072]
[1755229008329,0.1072,4653.3,4652.8,0.4361]
[1755229008523,0.1072,4653.3,4652.8,0.8913]
[1755229008903,0.002,4654.1,4652.8,0.8913]
[1755229008904,0.1072,4654.0,4653.2,2.25621447]
[1755229009105,0.002,4654.1,4653.5,0.1072]
[1755229009609,0.002,4654.1,4653.5,3.14742016]
[1755229010234,0.002,4654.1,4653.5,0.5433]
[1755229010604,0.002,4654.1,4653.5,2.69222016]
[1755229011220,0.002,4654.1,4653.5,3.14742016]
[1755229012127,0.002,4654.1,4653.5,2.69222016]
[1755229012527,0.002,4654.1,4653.5,3.18180936]
[1755229012736,0.002,4654.1,4653.5,13.18180936]
[1755229012918,0.002,4654.1,4653.5,13.16032016]
[1755229014212,0.002,4654.1,4653.5,12.69222016]
[1755229014821,0.002,4654.1,4653.5,3.16032016]
[1755229015041,0.002,4654.1,4653.5,2.25612016]
[1755229015536,0.002,4654.1,4653.5,2.70842016]
[1755229016712,0.002,4654.1,4653.5,6.02342016]
[1755229021345,0.002,4654.1,4653.5,5.57112016]
[1755229024249,0.002,4654.1,4653.5,9.81912013]
[1755229024612,0.002,4654.1,4653.5,10.27142013]
[1755229026750,0.002,4654.1,4653.5,9.81912013]
[1755229027152,0.4811,4654.1,4653.5,9.81912013]
[1755229027446,0.002,4654.1,4653.5,9.81912013]
[1755229027633,0.002,4654.1,4653.5,10.73952013]
[1755229027833,0.002,4654.1,4653.5,9.81912013]
[1755229028267,0.002,4654.1,4653.5,10.73952013]
[1755229029344,0.002,4654.1,4653.5,9.81912013]
[1755229030051,0.002,4654.1,4653.5,10.27142013]
[1755229032135,0.002,4654.1,4653.5,10.73952013]
[1755229032741,0.002,4654.1,4653.5,20.73952013]
[1755229033354,0.002,4654.1,4653.5,20.27142013]
[1755229033755,0.002,4654.1,4653.5,10.27142013]
[1755229033934,0.002,4654.1,4653.5,9.81912013]
[1755229034734,0.002,4654.1,4653.5,10.27142013]
[1755229035851,0.002,4654.1,4653.5,9.71192013]
[1755229036043,0.4352,4654.1,4653.5,9.71192013]
[1755229036832,0.002,4654.1,4653.5,10.16422013]
[1755229037761,0.002,4654.1,4653.5,9.71192013]
[1755229037929,0.002,4654.1,4653.5,10.16422013]
[1755229039972,0.002,4654.1,4653.5,10.63232013]
[1755229040482,0.002,4654.1,4653.5,13.63232013]
[1755229040764,0.002,4654.1,4653.5,23.63232013]
[1755229042327,0.002,4654.1,4653.5,23.16422013]
[1755229042526,0.002,4654.1,4653.5,22.71192013]
[1755229042728,0.002,4654.1,4653.5,12.71192013]
[1755229043153,0.002,4654.1,4653.5,13.16952013]
[1755229043533,0.462,4654.1,4653.5,12.71192013]
[1755229043732,0.4535,4654.0,4653.5,12.71192013]
[1755229044761,0.4535,4654.0,4653.5,9.71192013]
[1755229045290,0.4555,4653.6,4653.5,9.70892013]
[1755229045763,0.4555,4653.6,4653.5,9.81612013]
[1755229046330,0.002,4653.6,4653.5,10.27612013]
[1755229046537,0.002,4653.6,4653.5,6.02812016]
[1755229047836,0.4555,4653.6,4653.5,6.02812016]
[1755229048038,0.9155,4653.6,4653.5,6.02812016]
[1755229048599,0.4555,4653.6,4653.5,6.02812016]
[1755229048939,0.002,4653.6,4653.5,6.02812016]
[1755229049870,0.002,4653.6,4653.5,6.37852016]
[1755229050036,0.002,4653.6,4653.5,9.48572016]
[1755229050243,0.002,4653.6,4653.5,13.73372013]
[1755229050439,0.002,4653.6,4653.5,14.22472013]
[1755229050642,0.002,4654.1,4654.0,2.14868929]
[1755229050873,0.002,4654.1,4654.0,5.46068929]
[1755229051184,0.002,4654.1,4654.0,5.91828929]
[1755229051485,0.002,4654.1,4654.0,6.11156729]
[1755229052470,0.002,4654.1,4654.0,5.65396729]
[1755229052862,0.002,4654.1,4654.0,2.34196729]
[1755229053060,0.4555,4654.1,4654.0,3.504278]
[1755229053263,0.9155,4654.1,4654.0,3.4182]
[1755229053448,0.9155,4654.1,4654.0,5.56688929]
[1755229053650,0.9155,4654.1,4654.0,3.4182]
[1755229062191,0.9155,4654.1,4654.0,0.1072]
[1755229062373,0.9155,4654.1,4653.5,0.001]
[1755229062569,0.1072,4653.8,4653.5,0.001]
[1755229062981,0.9135,4653.7,4653.5,0.001]
[1755229063363,0.4535,4653.6,4653.5,0.001]
[1755229063589,0.002,4654.1,4653.5,0.1082]
[1755229064267,0.002,4654.1,4653.5,2.14990941]
[1755229064480,0.002,4654.1,4653.8,0.1072]
[1755229064661,0.002,4654.1,4653.9,3.311]
[1755229064884,0.4555,4654.1,4653.9,3.311]
[1755229065484,0.002,4654.1,4653.9,5.48120625]
[1755229065666,0.002,4654.1,4654.0,2.14868929]
[1755229065865,0.002,4654.1,4653.9,3.311]
[1755229065866,0.002,4654.1,4653.9,5.91732818]
[1755229066581,0.002,4654.1,4653.9,3.7686]
[1755229066783,0.002,4654.1,4654.0,0.02148689]
[1755229066960,0.002,4654.1,4653.9,3.311]
[1755229067165,0.002,4654.1,4654.0,2.71348929]
[1755229067995,0.002,4654.1,4654.0,2.73497618]
[1755229068599,0.002,4654.1,4654.0,3.22597618]
[1755229068769,0.002,4654.1,4654.0,2.71348929]
[1755229069484,0.002,4654.1,4654.0,3.20448929]
[1755229069787,0.002,4654.1,4654.0,16.20448929]
[1755229070174,1e-08,4654.1,4654.0,16.20448929]
[1755229072681,1e-08,4654.4,4654.1,5.14862468]
[1755229072885,1e-08,4654.4,4654.3,14.3436459]
[1755229073085,1e-08,4654.4,4654.3,16.4921967]
[1755229073384,1e-08,4654.4,4654.3,17.4031967]
[1755229073715,1e-08,4654.4,4654.3,27.4031967]
[1755229074013,1e-08,4654.4,4654.3,27.4892597]
[1755229074177,1e-08,4654.4,4654.3,27.0380597]
[1755229074379,1e-08,4654.4,4654.3,15.3418138]
[1755229074679,1e-08,4654.4,4654.3,18.6518138]
[1755229074876,1e-08,4654.4,4654.3,19.1116138]
[1755229076217,1e-08,4654.4,4654.3,15.6518138]
[1755229076886,1e-08,4654.4,4654.3,5.6518138]
[1755229079009,1e-08,4654.4,4654.3,0.193263]
[1755229079311,1e-08,4654.4,4654.3,5.4575508]
[1755229079514,1e-08,4654.4,4654.3,5.6508298]
[1755229080534,1e-08,4654.4,4654.3,0.193279]
[1755229080737,0.92210001,4654.4,4654.0,10.0]
[1755229080888,0.01641705,4654.3,4653.6,3.309]
[1755229081084,0.4705,4654.2,4653.6,3.309]
[1755229081301,0.9221,4654.2,4653.6,3.309]
[1755229081499,0.4516,4654.1,4653.7,0.02148827]
[1755229081791,0.9221,4654.1,4653.8,3.309]
[1755229082203,2.14856303,4654.3,4653.8,3.309]
[1755229082204,0.1072,4653.9,4653.8,3.309]
[1755229082414,1.0293,4653.9,4653.5,0.001]
[1755229082618,0.1072,4653.6,4653.5,3.31]
[1755229083022,1.0293,4653.6,4653.5,3.31]
[1755229084618,0.5588,4653.6,4653.5,3.31]
[1755229085320,1.0293,4653.6,4653.5,3.31]
[1755229086506,3.17817399,4653.6,4653.5,3.31]
[1755229086901,1.0293,4653.6,4653.5,3.31]
[1755229087103,1.0293,4653.6,4653.5,0.001]
[1755229087294,3.17817399,4653.6,4653.5,0.001]
[1755229089110,1.0293,4653.6,4653.5,0.001]
[1755229089309,3.17817399,4653.6,4653.5,0.001]
[1755229089704,0.1072,4653.6,4653.5,0.001]
[1755229089916,1.0293,4653.6,4653.5,0.001]
[1755229090390,3.17817399,4653.6,4653.5,0.001]
[1755229092200,9.59931099,4653.6,4653.5,0.001]
[1755229093193,2.14898658,4653.4,4653.1,0.001]
[1755229093429,2.14905871,4653.2,4653.1,0.001]
[1755229093602,0.9221,4654.0,4653.1,0.001]
[1755229094003,2.14882963,4653.7,4653.1,0.001]
[1755229094204,6.421137,4653.6,4653.1,0.001]
[1755229094530,0.9221,4653.5,4653.1,0.001]
[1755229094706,2.14901666,4653.3,4653.1,0.001]
[1755229095092,0.4516,4653.2,4653.1,0.001]
[1755229095310,3.07115871,4653.2,4653.1,0.001]
[1755229097030,0.9221,4653.2,4653.1,0.001]
[1755229097533,3.07115871,4653.2,4653.1,0.001]
[1755229098748,9.49229571,4653.2,4653.1,0.001]
[1755229099813,8.57019571,4653.2,4653.1,0.001]
[1755229100007,2.14905871,4653.2,4653.1,0.001]
[1755229100739,3.07115871,4653.2,4653.1,0.001]
[1755229103131,9.50871276,4653.2,4653.1,0.001]
[1755229103435,9.49229571,4653.2,4653.1,0.001]
[1755229103614,9.59949571,4653.2,4653.1,0.001]
[1755229104141,9.59949571,4653.2,4653.1,1e-08]
[1755229105240,10.06113795,4653.2,4653.1,1e-08]
[1755229106453,2.14928965,4652.7,4652.6,0.001]
[1755229106661,11.8968437,4652.7,4652.6,0.001]
[1755229106956,12.90462665,4652.7,4652.6,0.001]
[1755229107325,13.36656382,4652.7,4652.6,0.001]
[1755229107521,12.90462665,4652.7,4652.6,0.001]
[1755229107843,13.36655782,4652.7,4652.6,0.001]
[1755229108045,2.14933585,4652.6,4652.5,1e-08]
[1755229108222,9.04882107,4652.6,4652.5,1e-08]
[1755229108557,13.25940402,4652.6,4652.5,1e-08]
[1755229110938,13.25940402,4652.6,4652.1,1e-08]
[1755229110939,2.14952065,4652.2,4652.1,1e-08]
[1755229111140,11.8970747,4652.2,4652.1,1e-08]
[1755229111338,13.25958882,4652.2,4652.1,1e-08]
[1755229112057,13.36678882,4652.2,4652.1,1e-08]
[1755229114229,10.05678882,4652.2,4652.1,1e-08]
[1755229114430,13.36778882,4652.2,4652.1,1e-08]
[1755229114739,10.05678882,4652.2,4652.1,1e-08]
[1755229115156,13.36778882,4652.2,4652.1,1e-08]
[1755229115959,2.25672065,4652.2,4652.1,0.44530001]
[1755229116556,2.25672065,4652.2,4652.1,1e-08]
[1755229117257,2.25672065,4652.2,4652.1,0.44530001]
[1755229117462,5.56772065,4652.2,4652.1,0.44530001]
[1755229118037,2.25672065,4652.2,4652.1,0.44530001]
[1755229118232,5.56772065,4652.2,4652.1,0.44530001]
[1755229118432,2.25672065,4652.2,4652.1,0.44530001]
[1755229119337,0.1072,4652.2,4652.1,0.92730001]
[1755229119653,8.67785765,4652.2,4652.1,1e-08]
[1755229119858,10.05663719,4652.2,4652.1,1e-08]
[1755229121138,6.02950019,4652.2,4652.1,1e-08]
[1755229121568,6.02961729,4652.2,4652.1,1e-08]
[1755229121774,12.45075429,4652.2,4652.1,1e-08]
[1755229122064,8.67785765,4652.2,4652.1,1e-08]
[1755229123141,9.13986899,4652.2,4652.1,1e-08]
[1755229128063,12.45086899,4652.2,4652.1,1e-08]
[1755229129458,12.44986899,4652.2,4652.1,1e-08]
[1755229129852,13.36686899,4652.2,4652.1,1e-08]
[1755229130064,12.92506899,4652.2,4652.1,1e-08]
[1755229130267,12.44986899,4652.2,4651.7,0.001]
[1755229130484,2.264,4651.0,4650.1,4.90483749]
[1755229130783,2.264,4651.0,4648.1,2.15140149]
[1755229130784,2.15040708,4650.3,4649.4,0.482]
[1755229130990,0.77183551,4650.4,4649.4,0.482]
[1755229130991,2.15072264,4649.6,4649.5,0.4453]
[1755229131150,2.15072264,4649.6,4649.5,0.9273]
[1755229131346,2.61273398,4649.6,4649.5,0.9273]
[1755229131557,2.61273398,4649.6,4648.1,10.0]
[1755229131558,6.421137,4649.5,4648.1,10.0]
[1755229131777,0.57895088,4649.2,4647.9,0.11238538]
[1755229132080,11.06308588,4649.1,4648.0,0.4517]
[1755229132283,9.23513846,4649.0,4648.0,0.4517]
[1755229132579,7.28491803,4648.9,4648.0,0.4517]
[1755229132748,0.66279437,4648.8,4648.0,0.4517]
[1755229132952,0.40156685,4648.7,4648.0,0.4517]
[1755229133157,0.40156685,4648.6,4648.0,0.4517]
[1755229133355,0.40156685,4648.5,4648.0,0.4517]
[1755229133586,0.20078382,4648.4,4648.1,0.4517]
[1755229133754,0.20078382,4648.3,4648.1,0.4517]
[1755229133954,2.15117414,4648.7,4648.2,0.4517]
[1755229134182,2.35181785,4648.6,4648.2,0.4517]
[1755229134368,8.77299491,4648.5,4648.2,0.4517]
[1755229134566,0.20062531,4648.4,4648.2,0.4517]
[1755229134774,2.15119449,4648.6,4648.2,0.4517]
[1755229134775,0.20062531,4648.3,4648.2,0.4517]
[1755229135056,3.399,4648.5,4648.2,0.4517]
[1755229135280,2.1514167,4648.1,4648.0,0.001]
[1755229136069,5.54837155,4648.2,4648.0,0.001]
[1755229136578,3.397,4648.2,4648.0,0.001]
[1755229136986,5.54837516,4648.2,4648.0,0.001]
[1755229138285,2.1514167,4648.1,4648.0,0.001]
[1755229140395,2.2586167,4648.1,4648.0,0.001]
[1755229140697,1.71607976,4648.4,4648.0,0.4527]
[1755229140881,1.21607976,4648.4,4648.1,0.47191416]
[1755229141081,0.74107976,4648.4,4648.3,2.15132414]
[1755229141264,0.74107976,4648.4,4648.3,3.05342414]
[1755229141468,0.74107976,4648.4,4648.3,0.9021]
[1755229141869,0.84827976,4648.4,4648.3,0.9021]
[1755229142573,0.74107976,4648.4,4648.3,3.05342414]
[1755229142972,0.74107976,4648.4,4648.3,0.9021]
[1755229145597,0.74107976,4648.4,4648.0,0.001]
[1755229145833,2.1514167,4648.1,4648.0,0.001]
[1755229146015,2.16783375,4648.1,4648.0,0.001]
[1755229146228,9.55007075,4648.1,4648.0,0.001]
[1755229146390,2.1514167,4648.1,4648.0,0.001]
[1755229146818,0.74107976,4648.4,4648.0,0.9031]
[1755229147091,0.74107976,4648.4,4648.1,0.9021]
[1755229147518,0.74107976,4648.4,4648.2,0.9021]
[1755229147720,0.74107976,4648.4,4648.3,3.05342414]
[1755229147911,0.01641705,4650.1,4648.3,0.9021]
[1755229148123,2.15038588,4650.4,4648.4,3.07489062]
[1755229148426,6.421137,4650.3,4649.3,2.15083811]
[1755229148648,2.1501346,4650.9,4649.5,2.15076318]
[1755229148928,2.1501346,4650.9,4649.0,3.413]
[1755229148929,2.1499986,4651.2,4650.1,2.15047818]
[1755229149289,6.421137,4651.1,4650.0,0.4504]
[1755229149636,2.1504887,4650.2,4649.3,0.4517]
[1755229149936,2.15058123,4650.0,4649.3,0.4517]
[1755229150256,2.15063013,4649.8,4648.8,0.4517]
[1755229150391,0.01641705,4649.7,4648.8,0.4517]
[1755229150590,2.15072264,4649.6,4648.8,0.4517]
[1755229150791,2.16721221,4649.5,4648.8,0.4517]
[1755229151009,0.002,4648.9,4648.8,0.4517]
[1755229151616,0.002,4648.9,4648.7,3.414]
[1755229152818,0.002,4648.9,4648.1,3.411]
[1755229152993,0.002,4648.9,4648.1,3.8627]
[1755229153612,2.1511019,4648.8,4648.1,3.8627]
[1755229153808,0.002,4648.9,4648.1,3.8627]
[1755229154009,2.15109275,4648.8,4648.1,3.8627]
[1755229155723,0.1072,4648.2,4648.1,3.8627]
[1755229157323,0.1072,4648.2,4648.1,3.411]
[1755229159007,0.1072,4648.2,4648.0,0.001]
[1755229160897,2.2585741,4648.2,4648.0,0.001]
[1755229161226,0.1072,4648.2,4648.0,0.001]
[1755229162014,2.25857308,4648.2,4648.0,0.001]
[1755229162206,0.1072,4648.2,4648.0,0.001]
[1755229162405,0.1072,4648.2,4648.1,0.4474]
[1755229162700,0.1072,4648.2,4648.1,0.9401]
[1755229162895,0.1072,4648.2,4648.0,0.001]
[1755229163402,0.1072,4648.2,4648.1,0.9401]
[1755229163901,0.1072,4648.2,4648.1,0.4474]
[1755229164230,0.1072,4648.2,4648.0,0.001]
[1755229166201,2.1514167,4648.1,4648.0,0.001]
[1755229166728,0.1072,4648.1,4648.0,0.4484]
[1755229167130,0.1072,4648.1,4648.0,0.9411]
[1755229168616,0.1072,4648.1,4648.0,0.4484]
[1755229168818,0.1072,4648.1,4648.0,0.001]
[1755229171733,0.1072,4648.1,4648.0,0.4484]
[1755229173431,0.1072,4648.1,4648.0,0.001]
[1755229175810,0.9936,4648.1,4648.0,0.001]
[1755229176010,0.1072,4648.1,4648.0,0.001]
[1755229177139,0.1072,4648.1,4648.0,4.3361]
[1755229178317,0.1072,4648.1,4648.0,3.8434]
[1755229178847,0.1072,4648.1,4648.0,4.3361]
[1755229179854,0.002,4648.9,4648.8,2.15109275]
[1755229180062,0.002,4648.9,4648.8,3.392]
[1755229180219,0.002,4648.9,4648.8,5.54309275]
[1755229180543,0.002,4648.9,4648.8,6.48319275]
[1755229182318,0.002,4648.9,4648.8,9.59039275]
[1755229182850,0.002,4648.9,4648.8,19.59039275]
[1755229184047,0.002,4648.9,4648.8,19.58839275]
[1755229184829,0.002,4648.9,4648.8,9.58839275]
[1755229187456,0.002,4648.9,4648.8,3.4972]
[1755229187657,0.002,4648.9,4648.8,5.64829275]
[1755229191531,0.002,4648.9,4648.8,3.4972]
[1755229192150,0.002,4648.9,4648.8,4.3894]
[1755229192526,0.002,4648.9,4648.8,3.4972]
[1755229193964,0.002,4648.9,4648.8,6.08049275]
[1755229194169,0.002,4648.9,4648.8,6.54049275]
[1755229194464,0.002,4649.8,4649.5,2.15076703]
[1755229194672,0.002,4649.8,4649.7,0.1072]
[1755229195873,0.002,4649.8,4649.7,3.382]
[1755229196079,0.1092,4649.8,4649.7,3.382]
[1755229196769,0.002,4649.8,4649.7,3.382]
[1755229197345,6.421137,4649.7,4647.2,3.1397084]
[1755229197554,0.935,4649.6,4648.3,3.395]
[1755229197876,2.15101278,4649.0,4647.8,3.396]
[1755229198082,11.24511296,4649.3,4647.8,3.396]
[1755229198083,2.1514167,4648.1,4647.8,3.396]
[1755229198435,0.935,4648.1,4647.8,3.396]
[1755229199338,3.0864167,4648.1,4647.8,3.396]
[1755229200171,0.935,4648.1,4647.8,3.396]
[1755229201074,3.0864167,4648.1,4647.8,3.396]
[1755229202416,3.0864167,4648.1,4647.5,3.394]
[1755229202695,9.52397075,4648.1,4648.0,1e-08]
[1755229202845,9.97005699,4648.1,4648.0,1e-08]
[1755229203357,10.54775871,4648.1,4648.0,1e-08]
[1755229204055,9.97005699,4648.1,4648.0,1e-08]
[1755229204254,2.15164816,4647.6,4647.5,1e-08]
[1755229204483,11.98120221,4647.6,4647.5,1e-08]
[1755229204693,12.42728845,4647.6,4647.5,1e-08]
[1755229204854,13.36228845,4647.6,4647.5,1e-08]
[1755229205266,2.15169445,4647.5,4647.4,1e-08]
[1755229205463,9.97033474,4647.5,4647.4,1e-08]
[1755229205668,9.97033474,4647.5,4646.6,1e-08]
[1755229205669,2.15198968,4646.9,4646.6,1e-08]
[1755229205990,2.1520649,4646.7,4646.6,1e-08]
[1755229206175,9.03570519,4646.7,4646.6,1e-08]
[1755229206377,7.81864029,4646.7,4642.7,5.166]
[1755229206616,7.81864029,4646.7,4641.6,0.05817665]
[1755229206617,2.15336247,4643.9,4643.4,3.8222]
[1755229206756,2.15270645,4645.4,4643.4,0.4322]
[1755229206757,2.15341453,4643.8,4643.4,0.4322]
[1755229206955,0.01641705,4644.4,4643.4,0.4322]
[1755229207178,6.43755405,4644.4,4643.4,0.4322]
[1755229207380,4.325,4644.5,4642.6,0.4322]
[1755229207550,2.15322337,4644.2,4642.6,0.4322]
[1755229207760,7.37255405,4644.1,4642.6,0.4322]
[1755229207972,0.108,4643.0,4642.6,0.4322]
[1755229208173,3.391,4644.3,4642.7,0.46]
[1755229208386,0.108,4643.2,4642.7,0.4322]
[1755229208579,6.43755405,4643.1,4642.0,0.11248253]
[1755229208774,6.43755405,4643.0,4642.1,0.4322]
[1755229208997,8.57496728,4642.9,4642.1,0.4322]
[1755229209298,24.06592117,4644.7,4641.6,0.05817665]
[1755229209299,3.396,4643.1,4641.6,0.05817665]
[1755229209509,2.15394644,4642.7,4641.6,0.05817665]
[1755229209668,2.15392275,4642.7,4641.7,0.4322]
[1755229209869,0.4765,4643.2,4641.8,0.46]
[1755229210068,6.421137,4643.1,4641.9,0.4322]
[1755229210290,0.4765,4643.8,4642.0,0.46]
[1755229210498,1.2887839,4644.3,4642.0,0.46]
[1755229210499,1.7652839,4644.3,4642.1,0.4322]
[1755229210699,6.421137,4644.2,4642.2,2.61415104]
[1755229210904,6.421137,4644.2,4642.3,3.8922]
[1755229211063,0.47491705,4644.1,4642.3,0.4322]
[1755229211268,6.897637,4644.0,4642.8,2.15384636]
[1755229211504,1.2887839,4644.3,4642.9,0.45373826]
[1755229211677,1.2887839,4644.3,4643.5,2.15350673]
[1755229211879,1.2887839,4644.3,4643.0,3.0]
[1755229211880,1.2887839,4644.3,4643.7,2.1534111]
[1755229212078,1.2887839,4644.3,4643.6,0.8922]
[1755229212079,1.2887839,4644.3,4643.9,2.15331843]
[1755229212302,1.2887839,4644.3,4643.8,3.402]
[1755229212483,1.2887839,4644.3,4643.4,0.4322]
[1755229212484,1.2887839,4644.3,4643.4,3.8332]
[1755229213198,3.44196387,4644.3,4643.4,3.8332]
[1755229213404,1.2887839,4644.3,4643.4,3.8332]
[1755229213601,3.44198184,4644.3,4643.4,3.8332]
[1755229213966,2.15322539,4644.2,4643.4,3.8332]
[1755229214168,2.15322539,4644.2,4642.7,2.15388815]
[1755229214169,0.7,4644.0,4642.9,3.401]
[1755229214373,7.37255405,4643.9,4642.6,13.4]
[1755229214593,7.356137,4643.8,4642.6,10.0]
[1755229214873,9.52603729,4643.7,4642.0,10.72323133]
[1755229215180,2.15359798,4643.4,4642.1,2.15418436]
[1755229215396,2.15359798,4643.4,4642.0,3.401]
[1755229215397,2.15371042,4643.2,4642.0,3.401]
[1755229215585,0.01641705,4643.1,4642.0,3.401]
[1755229215785,0.4765,4643.6,4642.0,3.401]
[1755229215786,2.15368711,4643.2,4642.0,3.401]
[1755229215985,2.15374238,4643.1,4642.0,3.401]
[1755229216278,2.15369138,4643.2,4642.0,3.401]
[1755229216479,0.4585,4643.3,4642.0,3.401]
[1755229216480,2.15377988,4643.0,4642.0,3.401]
[1755229216679,6.421137,4642.9,4642.0,3.401]
[1755229216882,6.879637,4642.9,4641.9,0.001]
[1755229217077,2.15424386,4642.0,4641.9,0.001]
[1755229217313,8.57538086,4642.0,4641.9,0.001]
[1755229217515,6.421137,4642.0,4641.9,0.001]
[1755229217690,0.935,4642.0,4641.9,0.001]
[1755229218214,9.51038086,4642.0,4641.9,0.001]
[1755229218425,12.91038086,4642.0,4641.9,0.001]
[1755229218600,12.91038086,4642.0,4640.0,10.0]
[1755229218601,24.06592117,4641.1,4640.0,10.0]
[1755229218792,0.108,4640.1,4638.5,0.4322]
[1755229218994,6.421137,4640.0,4638.5,0.4322]
[1755229219197,9.830137,4640.0,4638.5,2.58802585]
[1755229219501,6.421137,4639.9,4638.5,2.58802585]
[1755229219816,0.108,4639.5,4639.0,2.15561754]
[1755229220008,0.108,4639.5,4638.8,0.108]
[1755229220009,2.15520581,4640.0,4638.6,0.8922]
[1755229220223,0.108,4639.0,4638.6,0.8922]